bitfinex-derivatives/quotes_ETHF0:USTF0_20240930
["timestamp","ask_amount","ask_price","bid_price","bid_amount"]
[1727728232477,0.3829,2612.3,2611.8,0.585]
[1727728232671,0.38293,2612.1,2611.8,1.53357]
[1727728233077,0.5758,2612.2,2611.8,1.53357]
[1727728233274,0.95872,2612.2,2611.8,1.53357]
[1727728233575,0.95872,2612.2,2611.9,0.38295]
[1727728234884,0.5758,2612.2,2611.9,0.38295]
[1727728235376,0.95871,2612.2,2611.9,0.38295]
[1727728235576,0.5758,2612.2,2611.9,0.38295]
[1727728235771,0.5758,2612.2,2611.8,1.1506]
[1727728235977,0.5758,2612.2,2611.9,0.38295]
[1727728236367,0.95871,2612.2,2611.9,0.38295]
[1727728236569,0.5758,2612.2,2611.9,0.38295]
[1727728237576,0.5758,2612.2,2612.0,0.38294]
[1727728237772,2.69,2612.5,2611.8,3.8406]
[1727728237974,2.69,2612.5,2612.2,0.38291]
[1727728237975,3.63087,2612.5,2612.2,0.38291]
[1727728238284,3.63087,2612.5,2612.3,0.5719]
[1727728239573,0.38288,2612.4,2612.3,0.5719]
[1727728239776,3.248,2612.5,2612.3,0.5719]
[1727728239982,3.63087,2612.5,2612.3,0.5719]
[1727728241089,0.38288,2612.4,2612.3,0.5719]
[1727728241381,3.248,2612.5,2612.3,0.5719]
[1727728241686,3.63088,2612.5,2612.3,0.5719]
[1727728241986,0.38288,2612.4,2612.3,0.5719]
[1727728243578,3.63088,2612.5,2612.3,0.5719]
[1727728243777,0.38288,2612.4,2612.3,0.5719]
[1727728245083,0.95721,2612.4,2612.0,3.2078]
[1727728245283,0.38291,2612.2,2612.0,3.59073]
[1727728245483,0.38292,2612.2,2612.0,3.2078]
[1727728245690,0.38292,2612.2,2611.9,0.38294]
[1727728245887,0.38293,2612.1,2611.7,5.88178584]
[1727728246187,0.96823,2612.1,2611.7,4.8955]
[1727728246387,0.5853,2612.1,2611.7,4.8955]
[1727728246583,0.38295,2612.0,2611.8,0.38296]
[1727728247189,0.38295,2611.9,2611.8,0.38296]
[1727728247391,4.23263,2612.1,2611.7,4.8955]
[1727728247598,0.38297,2611.8,2611.7,4.8955]
[1727728247791,0.38297,2611.8,2611.7,5.27848]
[1727728247988,0.38297,2611.8,2611.7,9.10728]
[1727728248188,0.38297,2611.8,2611.7,8.7243]
[1727728248494,0.38297,2611.8,2611.7,4.3416]
[1727728249197,0.38297,2611.8,2611.7,4.72458]
[1727728249692,2.69,2611.9,2611.7,4.3416]
[1727728249897,3.07297,2611.9,2611.7,4.72457]
[1727728250600,3.07297,2611.9,2611.7,1.51677]
[1727728250899,0.38297,2611.8,2611.7,0.5747]
[1727728251103,0.38297,2611.8,2611.5,0.383]
[1727728251104,0.383,2611.6,2611.5,0.383]
[1727728251604,0.383,2611.6,2611.4,1.7688]
[1727728251605,0.94269,2611.7,2611.4,1.7688]
[1727728251807,0.383,2611.6,2611.5,0.38301]
[1727728252203,0.94269,2611.7,2611.5,0.38301]
[1727728253400,0.94269,2611.7,2611.4,1.7688]
[1727728253609,0.94269,2611.7,2611.6,0.383]
[1727728254201,0.5597,2611.7,2611.6,0.383]
[1727728254909,0.9427,2611.7,2611.5,0.38301]
[1727728255103,0.9427,2611.7,2611.6,0.383]
[1727728256606,0.38296,2611.9,2611.8,0.38297]
[1727728256808,3.64734,2612.1,2611.9,0.38295]
[1727728256809,0.96374,2612.0,2611.9,0.38295]
[1727728257003,0.5808,2612.0,2611.8,0.38295]
[1727728257208,0.5808,2612.0,2611.9,0.5528]
[1727728257209,0.96374,2612.0,2611.9,0.5528]
[1727728258706,0.96374,2612.0,2611.9,0.93575]
[1727728259106,0.96374,2612.0,2611.9,0.5528]
[1727728259509,4.22817,2612.0,2611.6,3.2078]
[1727728259704,0.38299,2611.7,2611.6,0.5528]
[1727728259913,3.07299,2611.7,2611.6,0.5528]
[1727728260106,0.38301,2611.5,2611.4,0.594]
[1727728260306,0.38303,2611.4,2611.3,0.88384]
[1727728260813,0.38303,2611.4,2611.3,0.5008]
[1727728261210,0.38303,2611.4,2611.3,0.88384]
[1727728261607,0.38303,2611.4,2611.3,0.5008]
[1727728262416,0.38304,2611.3,2611.2,0.518]
[1727728262916,6.5196,2611.3,2611.0,3.2078]
[1727728263115,2.69,2611.1,2610.7,1.0493]
[1727728263309,3.07311,2610.9,2610.7,0.88572]
[1727728263510,0.38312,2610.8,2610.7,1.0493]
[1727728263710,0.87872,2610.8,2610.7,1.0493]
[1727728264208,0.87872,2610.8,2610.7,1.43243]
[1727728264407,0.87872,2610.8,2610.7,0.5026]
[1727728264617,0.87872,2610.8,2610.7,0.88573]
[1727728264816,0.87872,2610.8,2610.7,0.5026]
[1727728266108,0.4956,2610.8,2610.7,0.88573]
[1727728266311,0.87872,2610.8,2610.7,0.88573]
[1727728266510,0.4956,2610.8,2610.7,0.5026]
[1727728266716,0.4956,2610.8,2610.7,0.88573]
[1727728267013,0.87872,2610.8,2610.7,0.5026]
[1727728267214,0.4956,2610.8,2610.7,0.5026]
[1727728267522,0.4956,2610.8,2610.7,0.88573]
[1727728268614,0.4956,2610.8,2610.7,0.5026]
[1727728268915,0.4956,2610.8,2610.7,0.88573]
[1727728269115,0.4956,2610.8,2610.7,0.5026]
[1727728269614,0.87872,2610.8,2610.7,0.5026]
[1727728270222,0.87872,2610.8,2610.7,0.88573]
[1727728271018,0.4956,2610.8,2610.7,0.88573]
[1727728272016,0.87872,2610.8,2610.7,0.88573]
[1727728272217,0.4956,2610.8,2610.7,0.88573]
[1727728275513,0.38308,2611.1,2610.9,0.3831]
[1727728275719,0.38308,2611.1,2611.0,0.91898]
[1727728275918,0.90387,2611.2,2611.0,0.91898]
[1727728276118,0.38307,2611.1,2611.0,0.5359]
[1727728276620,0.38307,2611.1,2611.0,0.91899]
[1727728276822,0.5208,2611.2,2611.0,0.5359]
[1727728277423,0.5208,2611.2,2611.0,0.91898]
[1727728277424,0.90386,2611.2,2611.0,0.91898]
[1727728277628,0.5208,2611.2,2611.0,0.5359]
[1727728277927,0.90386,2611.2,2611.0,0.91898]
[1727728279828,0.5208,2611.2,2611.1,0.38307]
[1727728280018,0.90386,2611.2,2611.0,0.91897]
[1727728280731,0.90386,2611.2,2611.1,0.38307]
[1727728281319,0.90386,2611.2,2611.0,0.5359]
[1727728281320,0.5208,2611.2,2610.9,3.2078]
[1727728281624,1.62309,2611.0,2610.9,3.2078]
[1727728282420,1.24,2611.0,2610.8,0.5072]
[1727728282625,0.3831,2610.9,2610.8,0.5072]
[1727728282828,0.3831,2610.9,2610.7,1.42593]
[1727728283024,1.7336,2610.8,2610.7,1.42593]
[1727728284425,1.7336,2610.8,2610.7,0.5026]
[1727728284426,2.11672,2610.8,2610.7,0.5026]
[1727728284625,0.38313,2610.7,2610.6,3.59094]
[1727728284826,0.38313,2610.7,2610.6,3.2078]
[1727728285422,0.38313,2610.7,2610.5,0.92276]
[1727728285423,0.38314,2610.6,2610.5,0.5396]
[1727728285722,1.62314,2610.6,2610.5,0.92276]
[1727728285918,1.62314,2610.6,2610.5,0.5396]
[1727728286521,1.62314,2610.6,2610.5,0.92276]
[1727728286923,1.62314,2610.6,2610.4,1.0361]
[1727728287123,1.62314,2610.6,2610.4,0.5257]
[1727728287124,1.24,2610.6,2610.4,0.5257]
[1727728287330,1.24,2610.6,2610.3,3.2078]
[1727728287532,3.07317,2610.4,2610.3,3.2078]
[1727728287932,3.07317,2610.4,2610.3,3.59099]
[1727728288130,2.69,2610.4,2610.3,3.59099]
[1727728288431,3.07317,2610.4,2610.3,3.59099]
[1727728288634,3.59867,2610.4,2610.3,3.59099]
[1727728289028,3.2155,2610.4,2610.3,3.2078]
[1727728289225,3.59867,2610.4,2610.3,3.2078]
[1727728291428,0.38309,2611.0,2610.4,1.34111]
[1727728291626,0.38309,2611.0,2610.6,3.59094]
[1727728291627,0.38312,2610.8,2610.6,3.59094]
[1727728291828,0.38312,2610.8,2610.7,0.5314]
[1727728292028,0.38312,2610.8,2610.3,3.59098]
[1727728292029,0.38317,2610.5,2610.3,3.59098]
[1727728292232,0.5414,2610.7,2610.3,3.2078]
[1727728292433,0.92917,2610.4,2610.3,3.2078]
[1727728292625,2.69,2610.4,2610.3,3.59099]
[1727728298830,0.38316,2610.5,2610.3,3.2078]
[1727728299038,0.38316,2610.5,2610.4,0.38317]
[1727728300341,0.38316,2610.5,2610.4,0.38316]
[1727728301051,0.38316,2610.5,2610.4,0.38317]
[1727728302834,2.69,2610.6,2610.3,3.2078]
[1727728303047,2.69,2610.6,2610.5,0.38316]
[1727728303248,3.07314,2610.6,2610.5,0.38316]
[1727728307650,0.38314,2610.6,2610.4,0.38316]
[1727728307849,3.6478,2610.8,2610.4,0.38316]
[1727728307850,0.38316,2610.5,2610.4,0.38316]
[1727728308150,0.38316,2610.6,2610.4,0.38317]
[1727728308743,0.38316,2610.6,2610.3,4.19408584]
[1727728308945,0.38316,2610.6,2610.5,0.38316]
[1727728309148,0.38316,2610.6,2610.3,4.19408584]
[1727728309448,0.38316,2610.6,2610.4,0.38316]
[1727728309654,1.62316,2610.6,2610.3,4.19408584]
[1727728309851,1.62316,2610.6,2610.4,0.38317]
[1727728310252,0.38316,2610.5,2610.4,0.38317]
[1727728310559,1.62315,2610.6,2610.4,0.38316]
[1727728311345,1.62315,2610.6,2610.4,1.36944584]
[1727728311549,1.62315,2610.6,2610.4,0.38316]
[1727728311751,1.62315,2610.6,2610.3,4.19408584]
[1727728312052,1.62315,2610.6,2610.4,0.38317]
[1727728312547,1.24,2610.6,2610.4,0.38317]
[1727728312750,0.38316,2610.5,2610.4,0.38317]
[1727728313138,1.24,2610.6,2610.3,4.19408584]
[1727728313139,1.62316,2610.6,2610.5,0.38316]
[1727728315051,1.62316,2610.6,2610.4,3.2078]
[1727728315250,1.62316,2610.6,2610.4,3.59096]
[1727728315457,1.62316,2610.6,2610.5,0.38316]
[1727728316055,1.24,2610.6,2610.3,0.98628584]
[1727728316255,0.38316,2610.5,2610.4,3.59096]
[1727728317460,0.88056,2610.5,2610.4,3.59096]
[1727728318251,0.88056,2610.5,2610.4,0.38316]
[1727728318462,0.4974,2610.5,2610.4,0.38316]
[1727728318655,0.4974,2610.5,2610.4,3.59096]
[1727728319164,0.4974,2610.5,2610.4,0.38316]
[1727728319359,0.4974,2610.5,2610.4,3.59096]
[1727728320951,0.4974,2610.5,2610.4,4.57724584]
[1727728321152,1.62316,2610.6,2610.5,0.38316]
[1727728324963,1.24,2610.6,2610.5,0.38316]
[1727728325559,0.10812008,2611.2,2610.5,0.38316]
[1727728325560,3.2078,2611.4,2610.5,12.38724109]
[1727728325753,1.24,2611.3,2610.9,0.99388267]
[1727728325965,1.62305,2611.3,2611.1,0.38307]
[1727728326457,1.24,2611.3,2611.1,0.92757]
[1727728326658,0.92722,2611.5,2611.1,0.5445]
[1727728326864,1.24,2611.3,2611.2,0.38305]
[1727728327068,1.24,2611.3,2611.2,0.91025]
[1727728328966,1.24,2611.3,2611.2,1.90413267]
[1727728329356,1.24,2611.3,2611.2,0.91025]
[1727728332067,4.18,2611.9,2611.2,12.59068267]
[1727728332370,1.46403,2612.1,2611.7,3.2078]
[1727728332561,1.46403,2612.1,2611.8,1.0305]
[1727728332762,1.46403,2612.1,2611.8,1.41346]
[1727728332763,0.38295,2611.9,2611.8,1.41346]
[1727728332965,1.46403,2612.1,2611.8,1.0305]
[1727728333276,0.38295,2612.0,2611.8,1.0305]
[1727728333466,1.24,2611.9,2611.8,1.41345]
[1727728337468,1.62295,2611.9,2611.8,1.41345]
[1727728337661,1.62295,2611.9,2611.8,1.0305]
[1727728337862,1.62295,2611.9,2611.8,1.41347]
[1727728338773,1.24,2611.9,2611.8,1.41347]
[1727728339171,1.62295,2611.9,2611.8,1.41347]
[1727728339371,1.24,2611.9,2611.8,1.41347]
[1727728340574,1.62295,2611.9,2611.8,1.41347]
[1727728341874,1.24,2611.9,2611.8,1.41347]
[1727728342978,1.62295,2611.9,2611.8,1.41347]
[1727728343766,0.1414809,2636.1,2611.8,10.8593]
[1727728343767,3.2078,2612.7,2611.8,10.8593]
[1727728343970,11.096,2613.4,2613.1,0.38278]
[1727728343971,0.87626,2613.2,2613.1,0.38278]
[1727728344169,1.7335,2613.2,2613.1,0.38278]
[1727728344470,0.5043,2613.4,2612.9,3.2078]
[1727728344471,1.24,2613.4,2612.9,3.2078]
[1727728344672,0.4935,2613.5,2613.4,0.38273]
[1727728345175,1.0466,2614.0,2613.7,0.38269]
[1727728345176,1.24,2613.8,2613.7,0.38269]
[1727728345575,0.5254,2614.1,2613.5,3.7201]
[1727728345779,3.2154,2614.1,2613.5,4.67688]
[1727728345970,4.55844651,2614.3,2614.1,0.38262]
[1727728346174,4.10138,2614.5,2614.2,0.38261]
[1727728346175,3.2078,2614.5,2614.2,0.38261]
[1727728346375,3.2078,2614.5,2613.9,2.69]
[1727728346876,3.2078,2614.8,2614.5,0.38256]
[1727728347070,0.5254,2615.3,2614.5,7.0326]
[1727728347267,0.38245,2615.4,2614.9,0.38251]
[1727728347483,3.2078,2615.5,2615.0,2.69]
[1727728347781,0.5254,2615.9,2615.2,3.2078]
[1727728347782,2.69,2615.7,2615.2,3.2078]
[1727728348074,3.2078,2615.8,2615.3,0.38246]
[1727728348476,3.2078,2615.8,2615.2,3.2078]
[1727728348677,3.2078,2615.8,2615.4,2.69]
[1727728348877,3.2078,2615.8,2615.6,0.38241]
[1727728349287,3.2078,2615.8,2615.5,0.38242]
[1727728349486,0.38233,2616.2,2615.6,0.38241]
[1727728350174,0.38235,2616.1,2615.5,3.2078]
[1727728350383,2.69,2616.3,2615.5,3.2078]
[1727728350772,2.69,2615.6,2615.2,3.2078]
[1727728351683,3.07242,2615.6,2615.2,3.2078]
[1727728351883,2.69,2615.6,2615.2,3.2078]
[1727728352086,0.3824,2615.7,2615.2,3.2078]
[1727728352679,0.38242,2615.6,2615.2,3.2078]
[1727728352876,2.69,2615.6,2615.2,3.2078]
[1727728353386,3.07241,2615.6,2615.2,3.2078]
[1727728353592,0.38243,2615.5,2615.2,3.2078]
[1727728353782,3.07242,2615.6,2615.2,3.2078]
[1727728354177,2.69,2615.6,2615.2,3.2078]
[1727728354578,3.07242,2615.6,2615.2,3.2078]
[1727728356092,2.69,2615.6,2615.2,3.2078]
[1727728356992,3.07242,2615.6,2615.2,3.2078]
[1727728357183,2.69,2615.6,2615.2,3.2078]
[1727728358387,3.7047,2615.8,2615.3,0.38245]
[1727728358593,3.7047,2615.8,2615.3,0.91825]
[1727728359184,3.7047,2615.8,2615.4,0.38244]
[1727728359390,3.2078,2615.8,2615.4,0.38244]
[1727728359691,3.2078,2615.8,2615.5,0.38243]
[1727728359995,3.2078,2615.8,2615.3,1.0714]
[1727728360184,3.1895,2616.2,2615.5,3.2078]
[1727728360386,0.38235,2616.1,2615.5,3.59022]
[1727728360584,2.69,2616.0,2615.4,3.2078]
[1727728360990,3.07236,2616.0,2615.4,3.59023]
[1727728361191,0.38237,2615.9,2615.4,3.59024]
[1727728361393,2.69,2616.0,2615.4,3.2078]
[1727728361690,0.38238,2615.9,2615.4,3.2078]
[1727728361885,2.69,2616.0,2615.4,3.2078]
[1727728362092,0.38238,2615.9,2615.4,3.59024]
[1727728362292,2.69,2616.0,2615.4,3.2078]
[1727728362494,0.4995,2616.2,2615.4,3.2078]
[1727728362495,2.69,2615.8,2615.4,3.2078]
[1727728362789,0.3825,2615.0,2614.8,3.3141]
[1727728362993,2.69,2615.1,2614.6,0.5373]
[1727728363189,0.3825,2615.0,2614.6,0.5373]
[1727728363390,2.69,2615.1,2614.6,0.5373]
[1727728363694,0.38252,2614.9,2614.6,0.5373]
[1727728363899,2.69,2615.1,2614.6,0.5373]
[1727728364093,2.69,2615.1,2614.6,0.91985]
[1727728364399,0.38251,2615.0,2614.6,0.91985]
[1727728364600,2.69,2615.1,2614.6,0.5373]
[1727728364802,0.38252,2614.9,2614.6,0.5373]
[1727728364995,2.69,2615.1,2614.6,0.5373]
[1727728365195,2.69,2615.1,2614.7,0.38254]
[1727728365196,0.38249,2615.1,2614.7,0.38254]
[1727728365401,7.35136,2615.3,2614.7,3.59034]
[1727728365601,0.3825,2615.1,2614.7,3.59034]
[1727728366100,7.35136,2615.3,2614.7,3.59034]
[1727728366307,0.3825,2615.0,2614.7,3.59034]
[1727728366611,0.38251,2615.0,2614.7,3.2078]
[1727728366911,0.38251,2615.0,2614.7,3.59034]
[1727728367319,0.3825,2615.0,2614.7,3.59034]
[1727728367517,0.38249,2615.1,2614.8,0.38253]
[1727728367815,0.38249,2615.1,2614.7,3.59033]
[1727728368019,0.38249,2615.1,2614.7,3.2078]
[1727728368315,0.38249,2615.1,2614.7,3.59033]
[1727728368513,0.38249,2615.1,2614.7,3.2078]
[1727728368718,0.38249,2615.1,2614.8,0.38252]
[1727728369315,3.1874,2615.3,2614.7,3.2078]
[1727728369616,0.38247,2615.2,2614.9,0.3825]
[1727728370119,4.16394,2615.4,2614.9,0.3825]
[1727728370120,3.2078,2615.4,2614.9,3.824]
[1727728370413,11.53858,2615.8,2615.1,0.38247]
[1727728370615,0.38244,2615.5,2615.1,0.38247]
[1727728370818,6.4026,2615.8,2615.2,0.38246]
[1727728370819,0.38242,2615.6,2615.2,0.38246]
[1727728371313,0.38242,2615.6,2615.0,3.7138]
[1727728371314,6.4026,2615.8,2615.0,3.7138]
[1727728371513,7.35858,2615.8,2615.2,0.38247]
[1727728371922,0.38243,2615.5,2615.2,0.38247]
[1727728372118,0.38241,2615.7,2615.3,0.38246]
[1727728372418,3.7126,2615.8,2615.3,3.2078]
[1727728372923,0.3824,2615.7,2615.3,3.59024]
[1727728373112,4.09499,2615.8,2615.4,0.38243]
[1727728373315,3.7126,2615.8,2615.3,3.2078]
[1727728373511,0.3824,2615.7,2615.3,3.59025]
[1727728373918,0.38242,2615.6,2615.3,3.2078]
[1727728375221,0.38244,2615.4,2615.3,3.2078]
[1727728375923,0.38244,2615.5,2615.3,3.2078]
[1727728376325,0.38242,2615.6,2615.3,3.2078]
[1727728376625,0.38243,2615.5,2615.3,3.2078]
[1727728377517,3.7126,2615.8,2615.3,3.2078]
[1727728377719,0.38244,2615.5,2615.3,3.2078]
[1727728377924,0.38243,2615.5,2615.3,3.2078]
[1727728378122,0.38244,2615.4,2615.3,3.2078]
[1727728378921,0.38244,2615.4,2615.0,0.88849]
[1727728378922,0.38249,2615.1,2614.8,3.59032]
[1727728379117,0.4941,2615.3,2614.8,4.2658]
[1727728379315,0.3825,2615.1,2614.8,3.59033]
[1727728379913,2.69,2615.1,2614.6,1.0392]
[1727728380113,0.95629,2614.9,2614.6,1.0392]
[1727728380323,0.38252,2614.9,2614.7,0.38254]
[1727728380816,0.38252,2614.9,2614.6,1.42175]
[1727728380817,0.38251,2614.9,2614.6,1.42175]
[1727728381020,0.95626,2615.0,2614.6,1.0392]
[1727728381225,0.38252,2614.9,2614.7,0.38254]
[1727728381423,0.9562,2615.2,2614.6,1.0392]
[1727728381722,0.38254,2614.7,2614.6,1.0392]
[1727728382032,0.38254,2614.7,2614.6,0.5373]
[1727728382624,0.38247,2615.3,2614.6,8.00849]
[1727728382926,0.38245,2615.4,2614.8,5.8978]
[1727728383228,0.88273,2615.5,2615.3,0.38245]
[1727728383530,0.88274,2615.5,2615.1,3.2078]
[1727728383720,0.5003,2615.5,2615.4,0.38244]
[1727728384221,3.2078,2615.7,2615.6,0.38241]
[1727728384524,3.57263,2616.2,2615.9,0.38237]
[1727728384727,3.57263,2616.2,2615.7,3.2078]
[1727728384728,3.1903,2616.2,2615.7,3.2078]
[1727728384921,0.38235,2616.1,2615.9,0.38237]
[1727728385128,3.57264,2616.2,2615.9,0.38237]
[1727728385426,3.57264,2616.2,2615.7,3.2078]
[1727728385427,3.1903,2616.2,2615.7,3.2078]
[1727728385618,0.38235,2616.1,2615.8,0.38238]
[1727728386018,0.38235,2616.1,2615.9,0.38237]
[1727728386425,0.5003,2616.2,2615.7,3.2078]
[1727728386817,0.5003,2616.2,2615.8,0.4887]
[1727728387021,0.5003,2616.2,2615.9,0.38236]
[1727728387022,0.88263,2616.2,2615.9,0.38236]
[1727728387429,0.5003,2616.2,2615.8,0.4887]
[1727728387734,0.5003,2616.2,2616.0,0.38235]
[1727728388224,3.07231,2616.4,2615.8,0.4887]
[1727728388420,0.38231,2616.3,2616.0,0.38234]
[1727728388626,2.69,2616.4,2615.8,0.4887]
[1727728388827,2.69,2616.4,2615.9,0.38236]
[1727728388828,0.38233,2616.2,2615.9,0.38236]
[1727728389024,3.64576,2616.4,2615.8,0.4887]
[1727728389528,0.38233,2616.2,2615.8,0.4887]
[1727728389930,0.38233,2616.2,2615.9,0.38236]
[1727728390132,0.38234,2616.1,2615.8,0.4887]
[1727728390332,0.38234,2616.1,2615.8,0.87107]
[1727728390631,0.38237,2615.9,2615.6,3.5902]
[1727728390821,0.38238,2615.9,2615.6,3.5902]
[1727728391230,0.5232,2616.0,2615.6,3.2078]
[1727728391624,0.38238,2615.9,2615.6,3.59021]
[1727728392331,0.5232,2616.0,2615.7,0.3824]
[1727728392525,0.38233,2616.2,2615.7,2.69]
[1727728392828,3.2078,2616.5,2615.7,3.68150018]
[1727728392829,3.731,2616.5,2615.7,3.68150018]
[1727728393027,0.38235,2616.0,2615.7,4.06389018]
[1727728393234,0.38235,2616.0,2615.7,0.38239]
[1727728393432,0.9558,2616.3,2615.6,4.19930018]
[1727728393632,0.38234,2616.1,2615.8,0.38238]
[1727728394235,0.38233,2616.2,2615.6,4.19930018]
[1727728394531,0.38235,2616.1,2615.7,0.38238]
[1727728394726,0.95582,2616.2,2615.6,3.5902]
[1727728394932,0.38237,2615.9,2615.6,3.5902]
[1727728395129,0.38239,2615.8,2615.6,3.2078]
[1727728395330,0.3824,2615.7,2615.6,3.2078]
[1727728395529,0.38242,2615.6,2615.3,4.57345]
[1727728396139,1.46845,2615.9,2615.3,4.57345]
[1727728396326,0.38241,2615.7,2615.4,0.38244]
[1727728396527,0.38242,2615.6,2615.3,4.57345]
[1727728396943,0.38238,2615.8,2615.4,0.38243]
[1727728397235,0.89487,2615.9,2615.6,3.5902]
[1727728397436,0.89487,2615.9,2615.6,0.3824]
[1727728397634,0.5125,2615.9,2615.4,2.69]
[1727728397836,0.5125,2615.9,2615.3,4.191]
[1727728398144,2.96944,2616.5,2615.3,4.191]
[1727728398145,0.38227,2616.6,2616.0,0.38234]
[1727728398332,3.2078,2616.7,2616.1,3.7347]
[1727728398333,0.4863,2616.7,2616.1,3.7347]
[1727728398536,0.3823,2616.4,2616.1,3.7347]
[1727728398732,0.4863,2616.7,2616.1,3.7347]
[1727728398932,0.38229,2616.5,2616.1,3.7347]
[1727728399136,0.4863,2616.7,2616.1,3.7347]
[1727728399543,0.38229,2616.5,2616.1,3.7347]
[1727728399836,0.4863,2616.7,2616.1,3.7347]
[1727728399837,0.3823,2616.4,2616.1,3.7347]
[1727728400037,6.3841,2616.7,2616.1,3.7347]
[1727728400252,0.38229,2616.5,2616.1,3.7347]
[1727728400547,0.3823,2616.4,2616.1,3.7347]
[1727728400743,0.38229,2616.5,2616.1,3.7347]
[1727728400936,6.3841,2616.7,2616.1,3.7347]
[1727728401240,0.3823,2616.4,2616.1,3.7347]
[1727728401436,6.3841,2616.7,2616.1,3.7347]
[1727728401641,0.38229,2616.5,2616.1,4.11704]
[1727728402034,0.38227,2616.6,2616.1,4.11704]
[1727728402240,6.3841,2616.7,2616.1,3.7347]
[1727728402541,0.38229,2616.5,2616.1,4.11704]
[1727728402743,0.3823,2616.4,2616.1,3.7347]
[1727728403246,0.38237,2615.9,2615.5,3.2978]
[1727728403441,0.95586,2616.1,2615.5,3.2978]
[1727728403442,4.16366,2616.1,2615.5,3.2078]
[1727728403634,0.38241,2615.7,2615.5,3.2078]
[1727728403837,0.5064,2616.0,2615.5,3.59022]
[1727728404138,0.5064,2616.0,2615.7,0.38239]
[1727728404334,0.5064,2616.0,2615.5,3.2078]
[1727728404544,0.5064,2616.0,2615.6,0.38241]
[1727728404743,0.88875,2616.0,2615.6,0.3824]
[1727728404946,0.5064,2616.0,2615.7,0.3824]
[1727728406839,0.88875,2616.0,2615.7,0.3824]
[1727728407045,0.5064,2616.0,2615.5,3.2078]
[1727728407252,0.5064,2616.0,2615.5,3.59022]
[1727728407253,0.38237,2615.9,2615.5,3.59022]
[1727728407438,0.3824,2615.7,2615.5,3.2078]
[1727728407839,0.3824,2615.7,2615.4,0.4838]
[1727728408046,0.3824,2615.7,2615.4,3.6916]
[1727728408352,0.38241,2615.6,2615.4,3.6916]
[1727728408646,3.64595,2615.9,2615.4,0.4838]
[1727728408941,0.38243,2615.5,2615.4,0.4838]
[1727728412340,2.69,2615.7,2615.4,0.4838]
[1727728412544,2.69,2615.7,2615.1,3.2078]
[1727728412749,2.69,2615.7,2615.1,3.7221]
[1727728412949,0.38243,2615.5,2615.1,3.7221]
[1727728413145,0.38243,2615.5,2615.2,0.38247]
[1727728413454,0.38244,2615.5,2615.2,0.38247]
[1727728414259,3.64601,2615.7,2615.2,0.38247]
[1727728414456,0.38243,2615.5,2615.3,0.38246]
[1727728414753,0.38243,2615.5,2615.1,3.7221]
[1727728414958,0.38243,2615.5,2615.3,0.38246]
[1727728415457,3.64601,2615.7,2615.2,0.38247]
[1727728415458,0.38245,2615.4,2615.2,0.38247]
[1727728415753,0.38244,2615.5,2615.2,0.38247]
[1727728415952,3.2078,2615.8,2615.1,3.7221]
[1727728416155,0.5064,2616.0,2615.5,2.69]
[1727728416346,3.2078,2616.1,2615.6,0.4879]
[1727728416547,0.38236,2616.0,2615.7,0.86619]
[1727728416853,0.38238,2615.8,2615.7,0.4838]
[1727728418051,0.38238,2615.8,2615.4,3.2078]
[1727728418052,6.5132,2615.8,2615.4,3.2078]
[1727728418247,0.511,2615.7,2615.4,3.2078]
[1727728418450,2.69,2615.5,2615.2,0.4838]
[1727728418759,0.38245,2615.4,2615.2,0.4838]
[1727728418954,0.38244,2615.5,2615.2,0.86626]
[1727728419558,0.511,2615.7,2615.2,0.86626]
[1727728419559,1.46701,2615.7,2615.2,0.86626]
[1727728419753,0.38245,2615.4,2615.2,0.4838]
[1727728419955,1.46701,2615.7,2615.2,0.4838]
[1727728420145,3.2078,2616.1,2615.2,0.4838]
[1727728420350,4.18,2616.3,2615.4,3.2078]
[1727728420351,3.2078,2616.0,2615.4,3.2078]
[1727728420555,3.59016,2616.0,2615.7,0.38238]
[1727728420857,3.59016,2616.0,2615.8,0.38238]
[1727728421254,0.38237,2615.9,2615.7,0.38239]
[1727728421456,0.38237,2615.9,2615.8,0.5295]
[1727728422565,0.91147,2615.9,2615.8,0.5295]
[1727728423056,41.73041693,2620.4,2615.8,0.5295]
[1727728423057,3.64564,2616.7,2615.8,7.0427]
[1727728423253,0.38231,2616.3,2616.0,3.2078]
[1727728423454,1.48477,2616.6,2616.0,3.2078]
[1727728423650,0.38231,2616.3,2616.2,0.38232]
[1727728424056,0.38232,2616.3,2616.0,3.2078]
[1727728424248,0.5291,2616.6,2616.0,3.2078]
[1727728424449,0.3823,2616.4,2616.3,0.38231]
[1727728424651,0.38231,2616.3,2616.2,0.38231]
[1727728424958,0.38229,2616.5,2616.4,0.3823]
[1727728426057,0.5291,2616.6,2616.0,4.16368]
[1727728426261,0.3823,2616.4,2616.3,0.3823]
[1727728426462,1.48478,2616.6,2616.3,0.38231]
[1727728426463,1.33799,2616.5,2616.3,0.38231]
[1727728426660,0.3823,2616.4,2616.3,0.38231]
[1727728426859,0.38231,2616.3,2616.2,0.38231]
[1727728427060,0.95571,2616.5,2616.0,3.2078]
[1727728427367,0.38231,2616.4,2616.3,0.38231]
[1727728428458,0.95571,2616.5,2616.0,4.16368]